[Event "Betsys MČR v online bleskovém šachu 2021"]
[Site "Chess.com"]
[Date "2021.04.17"]
[Round "1"]
[White "ReitteN"]
[Black "Varinius"]
[Result "0-1"]
[WhiteElo "1774"]
[BlackElo "2449"]
[TimeControl "180+1"]
[EndTime "9:07:00 PDT"]
[Termination "Uživatel Varinius zvítězil po vzdání soupeře"]

1. c4 {[%clk 0:02:56.2]} 1... e5 {[%clk 0:02:57.2]} 2. Nc3 {[%clk 0:02:56.1]}
2... Nf6 {[%clk 0:02:52.7]} 3. g3 {[%clk 0:02:55]} 3... d5 {[%clk 0:02:51.1]} 4.
cxd5 {[%clk 0:02:53.5]} 4... Nxd5 {[%clk 0:02:50.7]} 5. Bg2 {[%clk 0:02:52]}
5... Nb6 {[%clk 0:02:43.8]} 6. d3 {[%clk 0:02:50.7]} 6... Be7 {[%clk 0:02:39.9]}
7. Nf3 {[%clk 0:02:42.8]} 7... Nc6 {[%clk 0:02:39.4]} 8. O-O {[%clk 0:02:41.3]}
8... O-O {[%clk 0:02:39]} 9. a3 {[%clk 0:02:39.2]} 9... Re8 {[%clk 0:02:38.5]}
10. Be3 {[%clk 0:02:23.4]} 10... Bf8 {[%clk 0:02:35.4]} 11. Rc1 {[%clk
0:02:20.3]} 11... Nd4 {[%clk 0:02:29]} 12. Bxd4 {[%clk 0:02:05.6]} 12... exd4
{[%clk 0:02:29.9]} 13. Ne4 {[%clk 0:02:04.7]} 13... c6 {[%clk 0:02:28.6]} 14. b4
{[%clk 0:01:47.9]} 14... Bg4 {[%clk 0:01:52.7]} 15. h3 {[%clk 0:01:43.2]} 15...
Bxf3 {[%clk 0:01:47.1]} 16. Bxf3 {[%clk 0:01:44.1]} 16... Qd7 {[%clk 0:01:40.1]}
17. Kh2 {[%clk 0:01:39.7]} 17... Nd5 {[%clk 0:01:39.6]} 18. Qd2 {[%clk
0:01:21.6]} 18... h6 {[%clk 0:01:34.7]} 19. Nc5 {[%clk 0:01:06.8]} 19... Bxc5
{[%clk 0:01:33.6]} 20. Bxd5 {[%clk 0:01:01.5]} 20... Qxd5 {[%clk 0:01:31.1]} 21.
Rxc5 {[%clk 0:00:57]} 21... Qe6 {[%clk 0:01:30.7]} 22. Re1 {[%clk 0:00:56.2]}
22... Re7 {[%clk 0:01:30]} 23. Qb2 {[%clk 0:00:50.4]} 23... Qd6 {[%clk
0:01:23.9]} 24. Qd2 {[%clk 0:00:40.7]} 24... Rae8 {[%clk 0:01:22.8]} 25. Rc2
{[%clk 0:00:21.7]} 25... Qd5 {[%clk 0:01:20.4]} 26. Rc4 {[%clk 0:00:11.7]} 26...
Kh7 {[%clk 0:01:16.8]} 27. Qf4 {[%clk 0:00:05.2]} 27... Rxe2 {[%clk 0:01:07.9]}
28. Rxe2 {[%clk 0:00:05]} 28... Rxe2 {[%clk 0:01:08.7]} 29. Rxd4 {[%clk
0:00:03.6]} 29... Qe6 {[%clk 0:01:03.2]} 30. Qe4+ {[%clk 0:00:02.1]} 30... Rxe4
{[%clk 0:01:02.6]} 31. Rxe4 {[%clk 0:00:03]} 31... Qb3 {[%clk 0:01:02.1]} 0-1

[Event "Betsys MČR v online bleskovém šachu 2021"]
[Site "Chess.com"]
[Date "2021.04.17"]
[Round "1"]
[White "Ladislav1969"]
[Black "jonvon640"]
[Result "1-0"]
[WhiteElo "2322"]
[BlackElo "1673"]
[TimeControl "180+1"]
[EndTime "9:07:03 PDT"]
[Termination "Uživatel Ladislav1969 zvítězil matem"]

1. e4 {[%clk 0:03:00.9]} 1... c5 {[%clk 0:02:52.8]} 2. d4 {[%clk 0:03:00.6]}
2... cxd4 {[%clk 0:02:51]} 3. c3 {[%clk 0:03:00.9]} 3... dxc3 {[%clk 0:02:46.4]}
4. Nxc3 {[%clk 0:03:01.8]} 4... Nc6 {[%clk 0:02:45.6]} 5. Nf3 {[%clk 0:03:02.4]}
5... g6 {[%clk 0:02:44.2]} 6. Bc4 {[%clk 0:03:00.9]} 6... Bg7 {[%clk 0:02:42.9]}
7. e5 {[%clk 0:03:01.1]} 7... Nxe5 {[%clk 0:02:32.3]} 8. Nxe5 {[%clk 0:03:00]}
8... Bxe5 {[%clk 0:02:33.2]} 9. Bxf7+ {[%clk 0:02:59.7]} 9... Kxf7 {[%clk
0:02:28.6]} 10. Qd5+ {[%clk 0:02:59.3]} 10... e6 {[%clk 0:02:27.3]} 11. Qxe5
{[%clk 0:02:59]} 11... Qf6 {[%clk 0:02:27.4]} 12. Qg3 {[%clk 0:02:35.8]} 12...
h6 {[%clk 0:02:18.1]} 13. O-O {[%clk 0:02:27.3]} 13... g5 {[%clk 0:02:15.8]} 14.
Ne4 {[%clk 0:02:13.7]} 14... Qg7 {[%clk 0:02:00.9]} 15. Nd6+ {[%clk 0:02:10.9]}
15... Ke7 {[%clk 0:02:00.6]} 16. Bd2 {[%clk 0:01:51.7]} 16... Nf6 {[%clk
0:01:56.6]} 17. Bb4 {[%clk 0:01:47.6]} 17... Kd8 {[%clk 0:01:45.6]} 18. Rac1
{[%clk 0:01:41.1]} 18... Ne8 {[%clk 0:01:22.1]} 19. Bc3 {[%clk 0:01:20.6]} 19...
Nf6 {[%clk 0:01:13.5]} 20. Qe5 {[%clk 0:00:54.2]} 20... Rf8 {[%clk 0:01:05.3]}
21. Ne4 {[%clk 0:00:52.9]} 21... Ke7 {[%clk 0:01:02.3]} 22. Bb4+ {[%clk
0:00:52.9]} 22... Ke8 {[%clk 0:00:55.4]} 23. Bxf8 {[%clk 0:00:52]} 23... Qxf8
{[%clk 0:00:54]} 24. Nxf6+ {[%clk 0:00:51.6]} 24... Ke7 {[%clk 0:00:53.7]} 25.
Nd5+ {[%clk 0:00:51.2]} 25... Kd8 {[%clk 0:00:48]} 26. Nc7 {[%clk 0:00:42.9]}
26... Qf5 {[%clk 0:00:28.9]} 27. Qh8+ {[%clk 0:00:38.5]} 27... Ke7 {[%clk
0:00:27.1]} 28. Nxa8 {[%clk 0:00:37.9]} 28... Qf6 {[%clk 0:00:24.6]} 29. Qxc8
{[%clk 0:00:36.1]} 29... h5 {[%clk 0:00:23.9]} 30. Rfd1 {[%clk 0:00:35.4]} 30...
h4 {[%clk 0:00:23.1]} 31. Rxd7# {[%clk 0:00:34.6]} 1-0

[Event "Betsys MČR v online bleskovém šachu 2021"]
[Site "Chess.com"]
[Date "2021.04.17"]
[Round "1"]
[White "czlolcz"]
[Black "povrlak60"]
[Result "1-0"]
[WhiteElo "2180"]
[BlackElo "1518"]
[TimeControl "180+1"]
[EndTime "9:07:05 PDT"]
[Termination "Uživatel czlolcz zvítězil po vzdání soupeře"]

1. d4 {[%clk 0:01:51.9]} 1... Nf6 {[%clk 0:02:58.3]} 2. c4 {[%clk 0:01:51.3]}
2... g6 {[%clk 0:02:57.4]} 3. Nc3 {[%clk 0:01:51.3]} 3... Bg7 {[%clk 0:02:57.1]}
4. e4 {[%clk 0:01:51.5]} 4... d6 {[%clk 0:02:56.9]} 5. Nf3 {[%clk 0:01:51.9]}
5... O-O {[%clk 0:02:56.5]} 6. h3 {[%clk 0:01:52.8]} 6... e5 {[%clk 0:02:54.1]}
7. dxe5 {[%clk 0:01:52.4]} 7... dxe5 {[%clk 0:02:53.6]} 8. Qxd8 {[%clk
0:01:53.3]} 8... Rxd8 {[%clk 0:02:53.3]} 9. Nd5 {[%clk 0:01:54.2]} 9... Nxd5
{[%clk 0:02:48.3]} 10. cxd5 {[%clk 0:01:55.1]} 10... c6 {[%clk 0:02:47.4]} 11.
Bc4 {[%clk 0:01:55.1]} 11... cxd5 {[%clk 0:02:42.7]} 12. Bxd5 {[%clk 0:01:56]}
12... Nc6 {[%clk 0:02:42.4]} 13. Bg5 {[%clk 0:01:53.9]} 13... Re8 {[%clk
0:02:28.8]} 14. O-O-O {[%clk 0:01:52.3]} 14... h6 {[%clk 0:02:25.9]} 15. Be3
{[%clk 0:01:45.7]} 15... Be6 {[%clk 0:01:56.9]} 16. Bxe6 {[%clk 0:01:44.7]}
16... Rxe6 {[%clk 0:01:47.1]} 17. Rd7 {[%clk 0:01:45.6]} 17... Re7 {[%clk
0:01:36.5]} 18. Rhd1 {[%clk 0:01:42.4]} 18... Rae8 {[%clk 0:01:34.4]} 19. Bc5
{[%clk 0:01:41.4]} 19... Rxd7 {[%clk 0:01:33]} 20. Rxd7 {[%clk 0:01:40.5]} 20...
b6 {[%clk 0:01:23]} 21. Ba3 {[%clk 0:01:38.8]} 21... Ra8 {[%clk 0:01:01.4]} 22.
Rc7 {[%clk 0:01:10.4]} 22... Nd4 {[%clk 0:00:59.8]} 23. Nxd4 {[%clk 0:01:10.6]}
23... exd4 {[%clk 0:00:59.4]} 24. Kd2 {[%clk 0:01:07.9]} 24... Be5 {[%clk
0:00:53.3]} 25. Re7 {[%clk 0:01:00.5]} 25... Bf6 {[%clk 0:00:51.8]} 26. Rd7
{[%clk 0:00:57.9]} 26... Kg7 {[%clk 0:00:50.2]} 27. Kd3 {[%clk 0:00:56.2]} 27...
g5 {[%clk 0:00:48.6]} 28. b3 {[%clk 0:00:44.9]} 28... Kg6 {[%clk 0:00:47.1]} 29.
Bb2 {[%clk 0:00:43.8]} 29... a5 {[%clk 0:00:35.9]} 30. Rd6 {[%clk 0:00:40.4]}
30... Rb8 {[%clk 0:00:31]} 31. e5 {[%clk 0:00:40.1]} 1-0

[Event "Betsys MČR v online bleskovém šachu 2021"]
[Site "Chess.com"]
[Date "2021.04.17"]
[Round "1"]
[White "VitaRasik"]
[Black "dnovotny"]
[Result "1-0"]
[WhiteElo "2616"]
[BlackElo "1801"]
[TimeControl "180+1"]
[EndTime "9:07:06 PDT"]
[Termination "Uživatel VitaRasik zvítězil na čas"]

1. e4 {[%clk 0:03:00.9]} 1... e5 {[%clk 0:02:59.9]} 2. Nf3 {[%clk 0:03:00.1]}
2... Nc6 {[%clk 0:03:00.4]} 3. Bb5 {[%clk 0:02:59.9]} 3... a6 {[%clk 0:03:00.4]}
4. Ba4 {[%clk 0:03:00]} 4... Nf6 {[%clk 0:03:00.9]} 5. d4 {[%clk 0:02:59.9]}
5... Nxe4 {[%clk 0:02:45.1]} 6. O-O {[%clk 0:02:53.7]} 6... Be7 {[%clk
0:02:11.2]} 7. Re1 {[%clk 0:02:39.4]} 7... d5 {[%clk 0:01:22.6]} 8. Nxe5 {[%clk
0:02:27.7]} 8... Bd7 {[%clk 0:01:13.1]} 9. Nxd7 {[%clk 0:02:23.9]} 9... Qxd7
{[%clk 0:01:14]} 10. c4 {[%clk 0:02:23.8]} 10... O-O {[%clk 0:01:01.6]} 11. cxd5
{[%clk 0:02:08.8]} 11... Qxd5 {[%clk 0:01:00.7]} 12. Nc3 {[%clk 0:01:32.1]}
12... Nxc3 {[%clk 0:00:50.6]} 13. bxc3 {[%clk 0:01:32.2]} 13... Rfe8 {[%clk
0:00:38.7]} 14. Bb3 {[%clk 0:01:26.1]} 14... Qf5 {[%clk 0:00:35]} 15. Bc2 {[%clk
0:01:19.1]} 15... Qf6 {[%clk 0:00:27.2]} 16. Bd2 {[%clk 0:01:10.3]} 16... Bd6
{[%clk 0:00:26.7]} 17. Qh5 {[%clk 0:01:05.2]} 17... g6 {[%clk 0:00:25.1]} 18.
Qh6 {[%clk 0:01:01.3]} 18... Bf8 {[%clk 0:00:20.2]} 19. Qg5 {[%clk 0:00:58.7]}
19... Qd6 {[%clk 0:00:17.6]} 20. Bf4 {[%clk 0:00:57.2]} 20... Qa3 {[%clk
0:00:17]} 21. Bb3 {[%clk 0:00:55.1]} 21... Rxe1+ {[%clk 0:00:04.9]} 22. Rxe1
{[%clk 0:00:54.1]} 22... Nd8 {[%clk 0:00:02.8]} 23. Bxc7 {[%clk 0:00:46.9]}
23... Bd6 {[%clk 0:00:01.5]} 24. Bxd8 {[%clk 0:00:43]} 1-0

[Event "Betsys MČR v online bleskovém šachu 2021"]
[Site "Chess.com"]
[Date "2021.04.17"]
[Round "1"]
[White "JindrichT_CZE"]
[Black "121pepa"]
[Result "1-0"]
[WhiteElo "2097"]
[BlackElo "1416"]
[TimeControl "180+1"]
[EndTime "9:07:06 PDT"]
[Termination "Uživatel JindrichT_CZE zvítězil na čas"]

1. e4 {[%clk 0:03:00.3]} 1... c5 {[%clk 0:02:58.7]} 2. c4 {[%clk 0:02:59.8]}
2... e6 {[%clk 0:02:57.4]} 3. Nc3 {[%clk 0:02:59.3]} 3... Nc6 {[%clk 0:02:55.8]}
4. g3 {[%clk 0:02:59.1]} 4... Qc7 {[%clk 0:02:51.4]} 5. Bg2 {[%clk 0:02:58.7]}
5... Nf6 {[%clk 0:02:46.8]} 6. Nge2 {[%clk 0:02:58.1]} 6... Be7 {[%clk
0:02:45.9]} 7. O-O {[%clk 0:02:57.7]} 7... O-O {[%clk 0:02:44]} 8. d4 {[%clk
0:02:56.6]} 8... cxd4 {[%clk 0:02:41.4]} 9. Nxd4 {[%clk 0:02:56.1]} 9... d6
{[%clk 0:02:29.3]} 10. Ndb5 {[%clk 0:02:42.1]} 10... Qd8 {[%clk 0:02:13.6]} 11.
Bg5 {[%clk 0:02:39.2]} 11... a6 {[%clk 0:02:12.2]} 12. Bxf6 {[%clk 0:02:38.5]}
12... Bxf6 {[%clk 0:01:55.2]} 13. Nxd6 {[%clk 0:02:37.2]} 13... Bd7 {[%clk
0:01:45.9]} 14. Nxb7 {[%clk 0:02:26.1]} 14... Qb6 {[%clk 0:01:36.2]} 15. Nd6
{[%clk 0:02:25.1]} 15... Nd4 {[%clk 0:00:52.1]} 16. e5 {[%clk 0:02:20.1]} 16...
Bxe5 {[%clk 0:00:27.2]} 17. Bxa8 {[%clk 0:02:19.1]} 17... Bxd6 {[%clk
0:00:27.1]} 18. Bg2 {[%clk 0:02:15.7]} 18... Rc8 {[%clk 0:00:17.8]} 19. b3
{[%clk 0:02:12.4]} 19... Bc6 {[%clk 0:00:14.5]} 20. Bxc6 {[%clk 0:02:09.7]}
20... Rxc6 {[%clk 0:00:11.8]} 21. Ne4 {[%clk 0:02:04.4]} 21... Nf5 {[%clk
0:00:09]} 22. Nxd6 {[%clk 0:02:01.6]} 22... Rxd6 {[%clk 0:00:09.6]} 23. Qe2
{[%clk 0:01:57.8]} 23... Qc6 {[%clk 0:00:08.7]} 24. Rad1 {[%clk 0:01:55]} 24...
Nd4 {[%clk 0:00:06.2]} 25. Rxd4 {[%clk 0:01:53.6]} 25... Rxd4 {[%clk 0:00:05.4]}
26. Rd1 {[%clk 0:01:53.4]} 26... Rxd1+ {[%clk 0:00:05.2]} 27. Qxd1 {[%clk
0:01:53.4]} 27... Kf8 {[%clk 0:00:04]} 28. Qd8+ {[%clk 0:01:52.5]} 28... Qe8
{[%clk 0:00:04.7]} 29. Qxe8+ {[%clk 0:01:52.5]} 29... Kxe8 {[%clk 0:00:05.4]}
30. f4 {[%clk 0:01:48.6]} 30... Kd7 {[%clk 0:00:06.1]} 31. Kf2 {[%clk
0:01:47.6]} 31... g6 {[%clk 0:00:06.8]} 32. Ke3 {[%clk 0:01:47.5]} 32... Kd6
{[%clk 0:00:07.5]} 33. Kd4 {[%clk 0:01:47.1]} 33... f6 {[%clk 0:00:07.8]} 34. b4
{[%clk 0:01:43.9]} 34... e5+ {[%clk 0:00:08.4]} 35. fxe5+ {[%clk 0:01:42.3]}
35... fxe5+ {[%clk 0:00:09]} 36. Ke4 {[%clk 0:01:42.3]} 36... h6 {[%clk
0:00:07.4]} 37. a4 {[%clk 0:01:42]} 37... Ke6 {[%clk 0:00:06.5]} 38. c5 {[%clk
0:01:41.4]} 38... Kd7 {[%clk 0:00:06.1]} 39. Kxe5 {[%clk 0:01:41]} 39... g5
{[%clk 0:00:06.8]} 40. Kd5 {[%clk 0:01:40.3]} 40... g4 {[%clk 0:00:06.1]} 41. b5
{[%clk 0:01:38.4]} 41... axb5 {[%clk 0:00:03.2]} 42. axb5 {[%clk 0:01:38.3]}
42... Kc7 {[%clk 0:00:02.7]} 43. Ke5 {[%clk 0:01:35.1]} 43... Kd7 {[%clk
0:00:01.7]} 44. Kf5 {[%clk 0:01:34.9]} 1-0

[Event "Betsys MČR v online bleskovém šachu 2021"]
[Site "Chess.com"]
[Date "2021.04.17"]
[Round "1"]
[White "VOJTASEK2009"]
[Black "PetrSoucek"]
[Result "0-1"]
[WhiteElo "1299"]
[BlackElo "2021"]
[TimeControl "180+1"]
[EndTime "9:07:06 PDT"]
[Termination "Uživatel PetrSoucek zvítězil matem"]

1. e4 {[%clk 0:03:00.3]} 1... c5 {[%clk 0:02:57.2]} 2. Nf3 {[%clk 0:02:58.7]}
2... d6 {[%clk 0:02:55.5]} 3. d4 {[%clk 0:02:58.5]} 3... cxd4 {[%clk 0:02:56.4]}
4. Nxd4 {[%clk 0:02:58.2]} 4... Nf6 {[%clk 0:02:57]} 5. Nc3 {[%clk 0:02:58.1]}
5... g6 {[%clk 0:02:57.5]} 6. Ke2 {[%clk 0:02:55.9]} 6... Bg7 {[%clk 0:02:55.6]}
7. Ke1 {[%clk 0:02:55.6]} 7... O-O {[%clk 0:02:54.8]} 8. Be2 {[%clk 0:02:55.7]}
8... Nc6 {[%clk 0:02:48.5]} 9. Be3 {[%clk 0:02:55.9]} 9... d5 {[%clk 0:02:43.1]}
10. e5 {[%clk 0:02:51.9]} 10... Nxe5 {[%clk 0:02:18.3]} 11. Qd2 {[%clk
0:02:45.9]} 11... Nc6 {[%clk 0:01:42.3]} 12. f3 {[%clk 0:02:41.3]} 12... e5
{[%clk 0:01:41.9]} 13. Nb3 {[%clk 0:02:38.5]} 13... d4 {[%clk 0:01:40.4]} 14.
Nd1 {[%clk 0:02:32.8]} 14... dxe3 {[%clk 0:01:39.8]} 15. Qxd8 {[%clk 0:02:30.8]}
15... Rxd8 {[%clk 0:01:38.1]} 16. Nxe3 {[%clk 0:02:30.3]} 16... Be6 {[%clk
0:01:36.3]} 17. Kf2 {[%clk 0:02:26.6]} 17... Bf8 {[%clk 0:01:29.8]} 18. Rhf1
{[%clk 0:02:26.3]} 18... a5 {[%clk 0:01:29.3]} 19. a4 {[%clk 0:02:15.7]} 19...
Bxb3 {[%clk 0:01:28]} 20. cxb3 {[%clk 0:02:11.7]} 20... Bc5 {[%clk 0:01:28.3]}
21. Rac1 {[%clk 0:01:59.8]} 21... Bb6 {[%clk 0:01:27.1]} 22. Rc3 {[%clk
0:01:36.5]} 22... Nd5 {[%clk 0:01:26.7]} 23. Rd3 {[%clk 0:01:23.6]} 23... Ncb4
{[%clk 0:01:21.5]} 24. Rdd1 {[%clk 0:01:14.8]} 24... Nxe3 {[%clk 0:00:55.3]} 25.
Rxd8+ {[%clk 0:01:09.7]} 25... Rxd8 {[%clk 0:00:56.2]} 26. Rc1 {[%clk
0:01:05.9]} 26... Rd2 {[%clk 0:00:49.7]} 27. Ke1 {[%clk 0:01:00.4]} 27... Rxb2
{[%clk 0:00:46.8]} 28. Rc8+ {[%clk 0:00:49.8]} 28... Kg7 {[%clk 0:00:46.5]} 29.
Bc4 {[%clk 0:00:45.9]} 29... Nxc4 {[%clk 0:00:42.3]} 30. bxc4 {[%clk 0:00:41.1]}
30... Nd3+ {[%clk 0:00:36.1]} 31. Kd1 {[%clk 0:00:35.4]} 31... Be3 {[%clk
0:00:34.5]} 32. Rc7 {[%clk 0:00:23.8]} 32... Rd2# {[%clk 0:00:34]} 0-1

[Event "Betsys MČR v online bleskovém šachu 2021"]
[Site "Chess.com"]
[Date "2021.04.17"]
[Round "1"]
[White "ikovacs"]
[Black "Classemence"]
[Result "0-1"]
[WhiteElo "1050"]
[BlackElo "1929"]
[TimeControl "180+1"]
[EndTime "9:07:08 PDT"]
[Termination "Uživatel Classemence zvítězil po vzdání soupeře"]

1. d4 {[%clk 0:02:42.6]} 1... Nf6 {[%clk 0:02:59.2]} 2. e3 {[%clk 0:02:42.1]}
2... d5 {[%clk 0:02:40.5]} 3. g3 {[%clk 0:02:40.2]} 3... c5 {[%clk 0:02:37.8]}
4. dxc5 {[%clk 0:02:37.9]} 4... e5 {[%clk 0:02:28]} 5. Bg2 {[%clk 0:02:38.2]}
5... Be6 {[%clk 0:02:23.5]} 6. Nf3 {[%clk 0:02:36.7]} 6... Nc6 {[%clk
0:02:22.7]} 7. O-O {[%clk 0:02:35.7]} 7... Bxc5 {[%clk 0:02:18.2]} 8. c3 {[%clk
0:02:34.1]} 8... O-O {[%clk 0:02:16.8]} 9. b4 {[%clk 0:02:33]} 9... Bd6 {[%clk
0:01:53.1]} 10. Bb2 {[%clk 0:02:27]} 10... Qc7 {[%clk 0:01:37.9]} 11. a3 {[%clk
0:02:21.3]} 11... Rac8 {[%clk 0:01:29.7]} 12. Nbd2 {[%clk 0:02:10.2]} 12... Rfd8
{[%clk 0:01:24.5]} 13. h4 {[%clk 0:02:05.9]} 13... h6 {[%clk 0:01:17]} 14. c4
{[%clk 0:01:59.3]} 14... dxc4 {[%clk 0:01:14.1]} 15. Nxc4 {[%clk 0:01:56.5]}
15... Bxc4 {[%clk 0:01:11.5]} 16. Re1 {[%clk 0:01:47.9]} 16... Bxb4 {[%clk
0:00:46.9]} 17. axb4 {[%clk 0:01:42.6]} 17... Rxd1 {[%clk 0:00:46]} 18. Raxd1
{[%clk 0:01:37.7]} 18... Nxb4 {[%clk 0:00:36.6]} 19. Bxe5 {[%clk 0:01:32.8]}
19... Qb6 {[%clk 0:00:29.2]} 20. Bd4 {[%clk 0:01:30.8]} 20... Qe6 {[%clk
0:00:22.4]} 21. Rc1 {[%clk 0:01:21.9]} 21... Bd5 {[%clk 0:00:17.1]} 22. Rxc8+
{[%clk 0:01:12.9]} 22... Qxc8 {[%clk 0:00:17.6]} 23. Kh2 {[%clk 0:01:00.2]}
23... Qc6 {[%clk 0:00:17.8]} 24. Rg1 {[%clk 0:00:55.7]} 24... Bxf3 {[%clk
0:00:17.8]} 25. Bxf3 {[%clk 0:00:54.2]} 25... Qxf3 {[%clk 0:00:18.7]} 26. Bxf6
{[%clk 0:00:50.8]} 26... Qxf6 {[%clk 0:00:18.6]} 27. Rb1 {[%clk 0:00:45]} 27...
Qxf2+ {[%clk 0:00:18.5]} 28. Kh3 {[%clk 0:00:43.1]} 28... Qf5+ {[%clk
0:00:18.4]} 29. Kg2 {[%clk 0:00:41.3]} 29... Qxb1 {[%clk 0:00:19.3]} 30. Kf3
{[%clk 0:00:38]} 30... Qf5+ {[%clk 0:00:19]} 31. Kg2 {[%clk 0:00:37.5]} 31...
Nd3 {[%clk 0:00:18.8]} 0-1

[Event "Betsys MČR v online bleskovém šachu 2021"]
[Site "Chess.com"]
[Date "2021.04.17"]
[Round "1"]
[White "psvoboda72"]
[Black "Trickov"]
[Result "0-1"]
[WhiteElo "1737"]
[BlackElo "2385"]
[TimeControl "180+1"]
[EndTime "9:07:09 PDT"]
[Termination "Uživatel Trickov zvítězil po vzdání soupeře"]

1. Nf3 {[%clk 0:02:58.1]} 1... d5 {[%clk 0:02:57.3]} 2. b3 {[%clk 0:02:58.7]}
2... c5 {[%clk 0:02:52.1]} 3. Bb2 {[%clk 0:02:59]} 3... Nc6 {[%clk 0:02:52.3]}
4. e3 {[%clk 0:02:59.2]} 4... Nf6 {[%clk 0:02:52.5]} 5. Bb5 {[%clk 0:02:57.8]}
5... a6 {[%clk 0:02:51.9]} 6. Bxc6+ {[%clk 0:02:56.5]} 6... bxc6 {[%clk
0:02:52.1]} 7. Ne5 {[%clk 0:02:56.4]} 7... Qc7 {[%clk 0:02:49.6]} 8. O-O {[%clk
0:02:56]} 8... g6 {[%clk 0:02:48.7]} 9. f4 {[%clk 0:02:54.8]} 9... Bg7 {[%clk
0:02:48.7]} 10. d3 {[%clk 0:02:53.8]} 10... O-O {[%clk 0:02:48.5]} 11. Nd2
{[%clk 0:02:54.2]} 11... a5 {[%clk 0:02:45.4]} 12. a4 {[%clk 0:02:51.2]} 12...
Rb8 {[%clk 0:02:44.4]} 13. Ndf3 {[%clk 0:02:43]} 13... Ba6 {[%clk 0:02:40.2]}
14. g4 {[%clk 0:02:33.8]} 14... c4 {[%clk 0:02:32.8]} 15. dxc4 {[%clk
0:02:17.7]} 15... dxc4 {[%clk 0:02:30.9]} 16. Rf2 {[%clk 0:02:09.3]} 16... Nxg4
{[%clk 0:02:01.3]} 17. Nxg4 {[%clk 0:01:49]} 17... Bxb2 {[%clk 0:01:59.1]} 18.
Rb1 {[%clk 0:01:49]} 18... Bg7 {[%clk 0:01:57.1]} 19. Qe1 {[%clk 0:01:28.2]}
19... cxb3 {[%clk 0:01:38]} 20. cxb3 {[%clk 0:01:25.6]} 20... Rb4 {[%clk
0:01:34.8]} 21. Rc1 {[%clk 0:01:14.6]} 21... Rxb3 {[%clk 0:01:21.1]} 22. Nfe5
{[%clk 0:01:11.2]} 22... c5 {[%clk 0:01:17.1]} 23. Rfc2 {[%clk 0:01:08.5]} 23...
Bb7 {[%clk 0:00:52.1]} 24. Rxc5 {[%clk 0:01:06.1]} 24... Qd6 {[%clk 0:00:49.1]}
25. Qxa5 {[%clk 0:00:45.9]} 25... h5 {[%clk 0:00:47]} 26. Rb5 {[%clk 0:00:34.3]}
26... Rxb5 {[%clk 0:00:40.3]} 27. Qxb5 {[%clk 0:00:33.2]} 27... Ba6 {[%clk
0:00:37.6]} 28. Qc6 {[%clk 0:00:30]} 28... hxg4 {[%clk 0:00:35.5]} 29. Nxg4
{[%clk 0:00:24.2]} 29... Qd2 {[%clk 0:00:31.5]} 0-1

[Event "Betsys MČR v online bleskovém šachu 2021"]
[Site "Chess.com"]
[Date "2021.04.17"]
[Round "1"]
[White "Mikulas19"]
[Black "pburak"]
[Result "1-0"]
[WhiteElo "1891"]
[BlackElo "923"]
[TimeControl "180+1"]
[EndTime "9:07:09 PDT"]
[Termination "Uživatel Mikulas19 zvítězil na čas"]

1. e4 {[%clk 0:03:00.3]} 1... e5 {[%clk 0:02:59.1]} 2. d4 {[%clk 0:02:59.4]}
2... exd4 {[%clk 0:02:58.1]} 3. Qxd4 {[%clk 0:02:59.6]} 3... Nc6 {[%clk
0:02:56.9]} 4. Qe3 {[%clk 0:02:59.7]} 4... Bb4+ {[%clk 0:02:44.6]} 5. Nc3 {[%clk
0:02:51]} 5... d6 {[%clk 0:02:41.2]} 6. Bd2 {[%clk 0:02:50.6]} 6... Nf6 {[%clk
0:02:33.3]} 7. O-O-O {[%clk 0:02:49.5]} 7... O-O {[%clk 0:02:32.1]} 8. f3 {[%clk
0:02:44.1]} 8... Be6 {[%clk 0:02:22.9]} 9. g4 {[%clk 0:02:31.7]} 9... Bc5 {[%clk
0:02:06.7]} 10. Qe1 {[%clk 0:02:18.2]} 10... a5 {[%clk 0:01:52.7]} 11. g5 {[%clk
0:02:08.5]} 11... Nd7 {[%clk 0:01:50.8]} 12. Nge2 {[%clk 0:01:54.3]} 12... Nde5
{[%clk 0:01:41.7]} 13. Qg3 {[%clk 0:01:18.9]} 13... a4 {[%clk 0:01:33.4]} 14.
Nf4 {[%clk 0:01:15.5]} 14... a3 {[%clk 0:01:22.1]} 15. b3 {[%clk 0:01:15.2]}
15... Nd4 {[%clk 0:00:59.3]} 16. Be2 {[%clk 0:01:08.1]} 16... Nxe2+ {[%clk
0:00:48.1]} 17. Ncxe2 {[%clk 0:01:06.6]} 17... Ng6 {[%clk 0:00:37.2]} 18. h4
{[%clk 0:01:04.6]} 18... f5 {[%clk 0:00:25.6]} 19. Nxe6 {[%clk 0:00:59.9]} 19...
Qe7 {[%clk 0:00:18.8]} 20. Nxf8 {[%clk 0:00:57.7]} 20... Rxf8 {[%clk 0:00:17.5]}
21. Nc3 {[%clk 0:00:47.1]} 21... Bd4 {[%clk 0:00:04.3]} 22. h5 {[%clk
0:00:38.7]} 22... Ne5 {[%clk 0:00:03]} 23. f4 {[%clk 0:00:32.9]} 1-0